bitfinex-derivatives/quotes_ETHF0:USTF0_20240910
["timestamp","ask_amount","ask_price","bid_price","bid_amount"]
[1725965211880,0.3742,2351.7,2351.6,0.42522]
[1725965212080,10.98716729,2351.7,2351.6,0.42522]
[1725965212280,0.3742,2351.7,2351.6,0.42522]
[1725965212979,0.7994,2351.7,2351.3,2.0086]
[1725965213182,0.42522,2351.6,2351.3,2.0086]
[1725965213386,1.6042,2351.7,2351.3,0.7786]
[1725965213689,2.0294,2351.7,2351.5,0.42522]
[1725965213890,3.14121578,2351.7,2351.5,0.42522]
[1725965214284,3.14121578,2351.7,2351.6,0.42522]
[1725965214594,2.0294,2351.7,2351.5,0.42523]
[1725965214888,3.14121578,2351.7,2351.5,0.42523]
[1725965215077,0.42522,2351.6,2351.5,0.42523]
[1725965215282,3.14122578,2351.7,2351.5,0.42523]
[1725965215584,2.71601578,2351.7,2351.5,0.42523]
[1725965216495,0.42522,2351.6,2351.4,0.42524]
[1725965216997,1.53701578,2351.7,2351.5,0.42522]
[1725965217288,1.92511578,2351.7,2351.6,0.3994]
[1725965217488,0.8133,2351.7,2351.6,0.3994]
[1725965217688,1.92511578,2351.7,2351.6,0.3994]
[1725965217990,0.8133,2351.7,2351.6,0.3994]
[1725965218387,0.42523,2351.6,2351.4,0.42524]
[1725965218786,0.42522,2351.6,2351.4,0.42524]
[1725965220189,3.15511578,2351.7,2351.5,0.42522]
[1725965220390,0.3881,2351.7,2351.6,0.81442]
[1725965220602,1.53701578,2351.7,2351.6,0.81442]
[1725965220895,0.4252,2351.7,2351.6,0.3892]
[1725965222793,0.42522,2351.6,2351.4,0.42524]
[1725965223098,0.82872,2351.6,2351.4,0.79264]
[1725965223989,0.82872,2351.6,2351.5,0.42523]
[1725965224589,0.4035,2351.6,2351.4,0.79265]
[1725965224995,0.82872,2351.6,2351.5,0.42523]
[1725965225184,0.4035,2351.6,2351.5,0.42523]
[1725965225696,0.4035,2351.6,2351.5,0.82793]
[1725965226088,0.82609,2351.8,2351.6,0.42521]
[1725965226301,0.82609,2351.8,2351.7,0.3778]
[1725965226492,1.93790578,2351.8,2351.7,0.3778]
[1725965227994,0.82609,2351.8,2351.7,0.3778]
[1725965228303,3.60988507,2351.8,2351.7,0.3778]
[1725965230303,0.82609,2351.8,2351.7,0.3778]
[1725965230801,3.60969409,2351.8,2351.7,0.3778]
[1725965230991,0.82609,2351.8,2351.7,0.3778]
[1725965231497,4.15499281,2351.8,2351.7,0.3778]
[1725965232091,0.82609,2351.8,2351.7,0.3778]
[1725965232292,0.4009,2351.8,2351.7,0.3778]
[1725965232503,3.34776073,2351.8,2351.7,0.80299]
[1725965232894,3.77294073,2351.8,2351.7,0.3778]
[1725965233399,0.42518,2351.8,2351.7,0.7748]
[1725965234505,3.34786642,2351.8,2351.7,1.19998]
[1725965234689,0.42518,2351.8,2351.7,1.19998]
[1725965234892,0.42518,2351.8,2351.7,1.86459513]
[1725965235498,3.34786642,2351.8,2351.7,1.19998]
[1725965235699,4.67938995,2351.9,2351.8,0.42518]
[1725965235700,3.77303642,2351.9,2351.8,0.42518]
[1725965236094,0.42517,2351.9,2351.8,1.11393624]
[1725965236698,1.65517,2351.9,2351.8,1.11393624]
[1725965236897,1.65517,2351.9,2351.8,0.66457556]
[1725965237305,4.44470914,2351.9,2351.8,0.66457556]
[1725965237808,4.44470914,2351.9,2351.7,2.31392624]
[1725965238103,2.23101594,2351.8,2351.7,2.31392624]
[1725965238301,2.23101594,2351.8,2351.7,4.04194197]
[1725965238702,2.23101594,2351.8,2351.7,5.3365336]
[1725965239101,2.23101594,2351.8,2351.7,4.04194197]
[1725965239806,1.67303443,2351.8,2351.7,5.89301881]
[1725965240101,1.67300666,2351.8,2351.7,5.89301881]
[1725965240404,1.67300666,2351.8,2351.7,4.04328896]
[1725965240405,2.23101594,2351.8,2351.7,4.04328896]
[1725965240593,3.88618594,2351.9,2351.7,4.04328896]
[1725965240797,2.23101594,2351.8,2351.7,1.19999]
[1725965240997,2.23101594,2351.8,2351.7,1.86464923]
[1725965241193,2.23101594,2351.8,2351.7,2.9280817]
[1725965241402,2.23101594,2351.8,2351.7,1.86464923]
[1725965242503,2.23101594,2351.9,2351.8,0.42518]
[1725965242700,2.23101594,2351.9,2351.8,1.08983923]
[1725965242907,3.21469914,2352.0,2351.8,1.08983923]
[1725965243113,3.1792038,2352.1,2352.0,0.42514]
[1725965243407,0.42511,2352.3,2352.1,0.42513]
[1725965243600,2.78747026,2352.2,2352.1,0.81463]
[1725965243801,2.78747026,2352.2,2352.1,1.47916849]
[1725965244001,3.21258026,2352.2,2352.1,0.3895]
[1725965244207,0.42511,2352.2,2352.1,0.3895]
[1725965244403,2.0362,2352.3,2352.1,0.3895]
[1725965244609,2.67384,2352.3,2351.7,1.11528323]
[1725965244805,1.67224113,2351.8,2351.7,1.54048323]
[1725965245109,3.88483484,2351.8,2351.6,0.81472]
[1725965245404,2.61475484,2351.7,2351.6,0.81472]
[1725965245810,2.61475484,2351.7,2351.6,0.3895]
[1725965245997,2.61475484,2351.7,2351.6,0.81472]
[1725965247006,0.3851,2351.7,2351.6,0.81472]
[1725965247212,2.61475484,2351.7,2351.6,0.81472]
[1725965247606,0.3851,2351.7,2351.6,0.81472]
[1725965248608,2.61475484,2351.7,2351.6,0.81472]
[1725965249205,3.03995484,2351.7,2351.6,0.3895]
[1725965249406,3.03995484,2351.7,2351.5,0.42523]
[1725965249715,2.61475484,2351.7,2351.4,1.51308323]
[1725965249904,1.67264153,2351.5,2351.4,1.93833323]
[1725965250104,1.67264153,2351.5,2351.4,4.43170945]
[1725965251112,1.67264153,2351.5,2351.4,1.48775213]
[1725965251113,2.22965484,2351.5,2351.4,1.48775213]
[1725965252014,2.22965484,2351.5,2351.4,3.88068313]
[1725965252213,2.78706855,2351.6,2351.5,0.42523]
[1725965252404,2.78706855,2351.6,2351.5,2.15345702]
[1725965254715,2.78706855,2351.7,2351.6,0.42522]
[1725965254914,5.38843642,2351.9,2351.7,0.42518]
[1725965255123,0.42518,2351.8,2351.7,0.42518]
[1725965255413,0.42518,2351.8,2351.7,1.08987425]
[1725965255801,5.38844642,2351.9,2351.8,0.42518]
[1725965256009,0.81058,2351.9,2351.8,1.41459425]
[1725965257113,0.81058,2351.9,2351.8,1.79929425]
[1725965258204,3.59842895,2351.9,2351.8,1.79929425]
[1725965258420,3.59842895,2351.9,2351.8,2.22444652]
[1725965258818,3.59842895,2351.9,2351.8,1.79926652]
[1725965259015,3.59842895,2351.9,2351.8,1.1346]
[1725965259519,3.59842895,2351.9,2351.7,0.42519]
[1725965260112,0.42518,2351.8,2351.7,0.42519]
[1725965260317,0.42518,2351.8,2351.5,1.51893049]
[1725965260612,2.23043126,2351.7,2351.6,1.08991942]
[1725965261013,2.65561126,2351.8,2351.7,0.4252]
[1725965261221,0.42518,2351.8,2351.7,0.4252]
[1725965261719,2.65548307,2351.8,2351.7,1.08983925]
[1725965261918,2.65548307,2351.8,2351.7,0.4252]
[1725965261919,3.21302895,2351.8,2351.7,0.4252]
[1725965262124,3.21302895,2351.8,2351.6,0.42522]
[1725965262312,2.23056534,2351.7,2351.6,0.42522]
[1725965262806,2.23057948,2351.7,2351.6,0.42522]
[1725965263011,3.21302895,2351.8,2351.7,0.4252]
[1725965263811,0.4252,2351.7,2351.6,0.42521]
[1725965264007,2.65575496,2351.7,2351.6,1.08990451]
[1725965264418,2.65575496,2351.7,2351.6,0.66469451]
[1725965264615,2.65575496,2351.7,2351.6,1.08991451]
[1725965265729,2.65575496,2351.7,2351.6,1.08992406]
[1725965266222,2.65575496,2351.7,2351.6,2.15344952]
[1725965269327,2.65575496,2351.7,2351.6,0.42522]
[1725965269628,2.65575496,2351.7,2351.6,2.1534207]
[1725965271237,6.56904895,2351.7,2351.6,0.66469258]
[1725965271430,2.7182,2351.7,2351.6,0.66469258]
[1725965271921,5.50473811,2351.7,2351.6,0.66469258]
[1725965273231,6.06606642,2351.7,2351.6,0.66469258]
[1725965273726,5.53891995,2351.7,2351.3,0.766]
[1725965273923,3.76825224,2351.6,2351.5,0.42523]
[1725965274123,3.76825224,2351.6,2351.5,0.66473382]
[1725965275723,4.13835224,2351.6,2351.5,0.66473382]
[1725965277221,0.42524,2351.5,2351.3,1.19126]
[1725965277427,0.42524,2351.5,2351.4,0.66476399]
[1725965277629,0.42524,2351.5,2351.4,1.09001399]
[1725965277826,0.42524,2351.5,2351.4,0.66476399]
[1725965278526,3.76827224,2351.5,2351.4,0.66476399]
[1725965278737,3.76827224,2351.5,2351.3,1.19126]
[1725965280122,0.42527,2351.3,2351.2,0.4028]
[1725965280321,0.42527,2351.3,2351.2,1.45261589]
[1725965280527,0.80617,2351.3,2351.2,0.66481589]
[1725965281127,3.03368835,2351.3,2351.2,0.66481589]
[1725965281434,0.42531,2351.1,2351.0,0.385]
[1725965281636,0.42531,2351.1,2351.0,0.81032]
[1725965281637,1.67056631,2351.1,2351.0,0.81032]
[1725965281826,1.113461,2351.1,2351.0,2.59018457]
[1725965282026,1.862261,2351.2,2351.0,1.50003049]
[1725965282328,1.113461,2351.2,2351.1,0.42531]
[1725965282524,1.113461,2351.2,2351.1,1.0900926]
[1725965283023,1.538751,2351.2,2351.1,0.6647826]
[1725965283823,0.42529,2351.2,2351.0,3.15535049]
[1725965284032,1.53827541,2351.1,2351.0,1.50003049]
[1725965284235,1.53827541,2351.1,2351.0,0.385]
[1725965284433,2.09587631,2351.1,2351.0,0.385]
[1725965284743,1.23,2351.1,2350.8,1.11503049]
[1725965285033,1.11278102,2350.9,2350.8,0.79255]
[1725965285533,2.48959153,2351.0,2350.9,0.42534]
[1725965285534,1.50788102,2351.0,2350.9,0.42534]
[1725965285835,1.93322102,2351.0,2350.8,0.79256]
[1725965287834,0.42534,2350.9,2350.8,0.3672]
[1725965288031,1.11278102,2350.9,2350.8,0.79256]
[1725965288229,1.66917153,2350.9,2350.8,0.79256]
[1725965289034,1.11174297,2350.9,2350.8,0.79256]
[1725965289235,1.11183465,2350.9,2350.8,0.79256]
[1725965289734,1.11183465,2350.9,2350.8,1.45745097]
[1725965290426,1.11183465,2350.9,2350.8,6.94105097]
[1725965290631,1.11167061,2351.0,2350.9,0.42534]
[1725965290832,1.11167061,2351.1,2351.0,0.42532]
[1725965291033,1.11167061,2351.1,2351.0,1.09012038]
[1725965291422,1.11167061,2351.1,2351.0,5.34372038]
[1725965291732,1.11167061,2351.1,2351.0,4.67892]
[1725965292034,1.11167061,2351.1,2351.0,5.34371278]
[1725965293036,2.09447153,2351.2,2351.1,0.42531]
[1725965293244,2.09447153,2351.2,2351.1,1.19611]
[1725965293835,1.66917153,2351.2,2351.1,1.19611]
[1725965294034,1.11171886,2351.2,2351.1,1.86088421]
[1725965294339,1.11171886,2351.2,2351.1,1.19611]
[1725965294533,2.09446153,2351.2,2351.1,1.19611]
[1725965295339,1.53702076,2351.2,2351.1,1.19611]
[1725965296732,1.11173076,2351.2,2351.1,1.19611]
[1725965297038,1.53702076,2351.2,2351.1,0.7708]
[1725965297841,1.53702076,2351.2,2351.1,1.19611]
[1725965298036,1.11173076,2351.2,2351.1,1.19611]
[1725965298232,1.11173076,2351.3,2351.2,0.42529]
[1725965298745,1.11173076,2351.5,2351.4,0.42525]
[1725965299232,0.42525,2351.4,2351.2,0.80878]
[1725965299433,1.9199503,2351.4,2351.2,0.80878]
[1725965299640,1.9199503,2351.4,2351.2,0.3835]
[1725965299842,1.9199503,2351.4,2351.2,0.80878]
[1725965300042,1.9199503,2351.4,2351.3,0.42527]
[1725965300647,1.9199503,2351.4,2351.3,4.67807]
[1725965300835,1.4947003,2351.4,2351.3,4.67807]
[1725965301344,1.4947003,2351.4,2351.3,0.42527]
[1725965303231,0.3831,2351.4,2351.3,0.42527]
[1725965304244,2.61052175,2351.4,2351.3,0.42527]
[1725965304435,2.22742175,2351.4,2351.3,0.42527]
[1725965304636,1.66784827,2351.4,2351.3,0.42527]
[1725965304841,2.65266175,2351.5,2351.4,0.42525]
[1725965305342,0.42524,2351.5,2351.4,0.42525]
[1725965305734,0.42524,2351.5,2351.2,0.80878]
[1725965305735,0.42527,2351.3,2351.2,0.80878]
[1725965305938,2.09318304,2351.3,2351.1,0.4006]
[1725965306239,1.11194011,2351.2,2351.1,0.82591]
[1725965306546,1.66791304,2351.2,2351.1,0.82589]
[1725965306737,2.09320304,2351.2,2351.1,0.82589]
[1725965306937,1.66791304,2351.2,2351.1,0.82589]
[1725965307139,2.09320304,2351.2,2351.1,0.4006]
[1725965307648,2.64917405,2351.2,2351.1,0.4006]
[1725965308246,2.64917405,2351.2,2351.1,0.82591]
[1725965310449,2.09388291,2351.2,2351.1,0.82591]
[1725965310744,2.09388291,2351.2,2351.1,0.4006]
[1725965311447,1.66859291,2351.3,2351.0,0.79782]
[1725965311743,0.4026,2351.1,2351.0,0.79782]
[1725965311946,0.4026,2351.1,2351.0,1.46269503]
[1725965312649,0.82791,2351.1,2351.0,1.09019503]
[1725965313037,0.82791,2351.1,2350.9,1.54036049]
[1725965313349,0.82791,2351.1,2351.0,0.42532]
[1725965313544,0.42532,2351.0,2350.9,1.54037049]
[1725965313845,0.42532,2351.0,2350.8,2.29568049]
[1725965314047,1.17532,2351.0,2350.9,0.42534]
[1725965314238,1.17532,2351.0,2350.9,1.090249]
[1725965314548,1.17532,2351.0,2350.9,0.664909]
[1725965315048,1.17532,2351.0,2350.9,1.090249]
[1725965315250,2.84391291,2351.0,2350.9,1.090249]
[1725965315638,2.84391291,2351.0,2350.9,0.42534]
[1725965315949,1.17532,2351.0,2350.9,1.09024271]
[1725965316149,2.84391291,2351.0,2350.9,1.09024271]
[1725965317147,2.84391291,2351.0,2350.9,0.66490271]
[1725965319547,2.84391291,2351.0,2350.9,1.09024271]
[1725965321752,2.41859291,2351.0,2350.9,1.09024271]
[1725965321960,2.84391291,2351.0,2350.9,1.09024271]
[1725965322159,2.46511291,2351.0,2350.9,1.47554573]
[1725965322354,0.79652,2351.0,2350.9,1.47554573]
[1725965322555,2.46644882,2351.0,2350.9,1.47554573]
[1725965322755,2.09524882,2351.0,2350.9,1.47554573]
[1725965322957,1.66992882,2351.0,2350.9,1.47554573]
[1725965325471,1.66992882,2351.0,2350.9,1.47554279]
[1725965325678,1.66992882,2351.0,2350.9,2.14044637]
[1725965325975,1.66992882,2351.1,2351.0,0.42532]
[1725965326164,2.22388405,2351.2,2351.1,0.42531]
[1725965326368,2.22388405,2351.2,2351.1,0.80621]
[1725965326565,2.22388405,2351.2,2351.1,1.47106697]
[1725965327481,2.64917405,2351.2,2351.1,1.47106697]
[1725965327981,2.64917405,2351.2,2351.1,0.80621]
[1725965328170,2.64917405,2351.2,2351.1,1.4710657]
[1725965328574,2.22388405,2351.2,2351.1,1.4710657]
[1725965328773,4.38079794,2351.4,2351.2,0.42529]
[1725965328774,2.64915405,2351.3,2351.2,0.42529]
[1725965328974,2.22388405,2351.3,2351.2,1.0901457]
[1725965329379,3.01554405,2351.4,2351.2,1.0901457]
[1725965329672,2.22388405,2351.3,2351.2,0.42529]
[1725965329872,2.22388405,2351.3,2351.2,1.09012672]
[1725965330082,2.22388405,2351.3,2351.2,0.42529]
[1725965330381,2.22388405,2351.3,2351.2,1.09011933]
[1725965332188,2.64915405,2351.3,2351.2,1.09013044]
[1725965332379,2.64915405,2351.3,2351.2,0.66484044]
[1725965333383,2.64915405,2351.3,2351.2,1.09013044]
[1725965333384,2.22388405,2351.3,2351.2,1.09013044]
[1725965333582,2.64915405,2351.3,2351.2,0.66484044]
[1725965334081,2.64915405,2351.3,2351.1,0.8062]
[1725965334282,2.64915405,2351.3,2351.1,0.4253]
[1725965334472,2.22388405,2351.2,2350.9,1.87413049]
[1725965334673,2.89908376,2351.0,2350.9,1.87413049]
[1725965334873,2.89908376,2351.0,2350.9,1.84931754]
[1725965335077,1.65532,2351.0,2350.9,1.18444]
[1725965336376,1.65532,2351.0,2350.8,1.54038049]
[1725965336573,1.66899075,2350.9,2350.8,0.42535]
[1725965336787,1.66899075,2350.9,2350.8,1.09027658]
[1725965336970,1.66899075,2350.9,2350.8,1.49257658]
[1725965337377,1.112742,2350.9,2350.8,2.60760707]
[1725965338883,1.66899075,2350.9,2350.8,3.67143742]
[1725965339081,1.66899075,2350.9,2350.8,2.60761707]
[1725965339282,1.66899075,2351.0,2350.9,0.42534]
[1725965339478,3.42519405,2351.1,2350.9,0.42534]
[1725965339678,0.42534,2350.9,2350.8,0.4023]
[1725965339879,1.66887066,2350.9,2350.8,1.4925759]
[1725965340487,2.09421066,2350.9,2350.8,0.6649159]
[1725965340685,2.64922405,2350.9,2350.7,1.19067]
[1725965340883,0.3933,2350.8,2350.7,1.19067]
[1725965341085,0.81866,2350.8,2350.7,1.19067]
[1725965341286,9.58955405,2350.8,2350.7,0.66495338]
[1725965341484,9.58955405,2350.8,2350.5,0.4014]
[1725965341485,0.4254,2350.6,2350.5,0.4014]
[1725965341685,0.4254,2350.6,2350.5,0.66501041]
[1725965341686,1.6554,2350.6,2350.5,0.66501041]
[1725965341898,5.9098,2350.6,2350.5,0.66501041]
[1725965342080,8.13379289,2350.6,2350.5,0.66501041]
[1725965342283,0.42542,2350.5,2350.4,0.4014]
[1725965342593,0.42542,2350.5,2350.4,1.06645153]
[1725965342989,3.15718947,2350.5,2350.4,0.66505153]
[1725965343189,3.15718947,2350.5,2350.0,0.8056]
[1725965343190,0.42547,2350.2,2350.0,0.8056]
[1725965343484,1.66733119,2350.2,2350.1,0.42549]
[1725965344279,3.32279119,2350.3,2350.1,0.42549]
[1725965344478,2.09280119,2350.2,2350.0,0.80559]
[1725965344682,1.11099367,2350.1,2350.0,0.80559]
[1725965345485,1.53648367,2350.1,2350.0,0.80559]
[1725965345696,1.90398367,2350.1,2350.0,0.80559]
[1725965345885,1.47849367,2350.1,2350.0,0.80559]
[1725965346591,1.11099367,2350.1,2350.0,0.80559]
[1725965346783,1.53648367,2350.1,2350.0,0.80559]
[1725965347092,1.11099367,2350.1,2350.0,0.80559]
[1725965348193,3.13396367,2350.3,2350.1,0.42549]
[1725965348586,1.11099367,2350.2,2350.1,0.42549]
[1725965348786,0.42547,2350.2,2350.1,0.42549]
[1725965349991,1.11099367,2350.3,2350.2,0.42547]
[1725965350193,4.89062826,2350.6,2350.4,0.42543]
[1725965350194,1.11099367,2350.5,2350.4,0.42543]
[1725965350490,3.94130533,2350.8,2350.4,2.29358]
[1725965350491,1.48119367,2350.8,2350.4,2.29358]
[1725965350700,1.48119367,2350.8,2350.5,0.4034]
[1725965350701,0.3702,2350.8,2350.5,0.4034]
[1725965351004,0.3702,2350.8,2350.7,0.42538]
[1725965351294,1.48119367,2350.8,2350.7,0.42538]
[1725965351691,1.11099367,2350.8,2350.7,0.79088]
[1725965352490,1.53635367,2350.8,2350.7,0.79088]
[1725965352791,1.11099367,2350.8,2350.7,0.79088]
[1725965352996,1.53635367,2350.8,2350.7,0.79088]
[1725965353595,1.53635367,2350.8,2350.7,0.3655]
[1725965354290,1.53635367,2350.8,2350.7,0.79088]
[1725965354586,0.42536,2350.8,2350.7,0.3655]
[1725965354789,1.53635367,2350.8,2350.7,0.79088]
[1725965355000,2.76635367,2350.8,2350.7,0.3655]
[1725965355902,1.53635367,2350.8,2350.7,0.3655]
[1725965356790,1.53635367,2350.8,2350.7,0.79088]
[1725965357797,1.53635367,2350.8,2350.7,0.3655]
[1725965358702,2.76635367,2350.9,2350.7,0.79088]
[1725965358904,0.42536,2350.8,2350.7,0.79088]
[1725965359404,1.65535,2350.9,2350.7,0.79088]
[1725965359600,3.71156119,2351.0,2350.7,0.3655]
[1725965359905,0.81423,2351.0,2350.8,0.42536]
[1725965360410,0.81423,2351.0,2350.9,0.3971]
[1725965360599,0.81423,2351.0,2350.9,0.82244]
[1725965362210,2.04423,2351.0,2350.9,0.82244]
[1725965362905,1.6189,2351.0,2350.9,0.82244]
[1725965363899,2.72940042,2351.0,2350.9,0.82244]
[1725965367209,3.15472042,2351.0,2350.9,0.3971]
[1725965367513,3.15472042,2351.0,2350.9,0.82244]
[1725965367707,3.15472042,2351.0,2350.9,0.3971]
[1725965368207,3.71155119,2351.0,2350.9,0.3971]
[1725965368602,3.28623119,2351.0,2350.9,0.82244]
[1725965368805,2.7294677,2351.0,2350.9,0.82244]
[1725965370816,3.1547877,2351.0,2350.9,0.82244]
[1725965371111,2.7294677,2351.0,2350.9,0.82244]
[1725965372715,3.1547877,2351.0,2350.9,0.82244]
[1725965374318,3.71155119,2351.0,2350.9,0.82244]
[1725965374708,2.04422,2351.0,2350.9,0.82244]
[1725965375014,3.1552665,2351.0,2350.9,0.3971]
[1725965375411,3.71155119,2351.0,2350.9,0.3971]
[1725965379210,3.28623119,2351.0,2350.9,0.3971]
[1725965379413,3.28623119,2351.0,2350.9,0.82244]
[1725965380612,3.71155119,2351.0,2350.9,0.82244]
[1725965381112,3.71155119,2351.0,2350.9,0.3971]
[1725965381815,3.71155119,2351.0,2350.9,0.82244]
[1725965383827,3.28623119,2351.0,2350.9,0.82244]
[1725965385525,2.89733119,2351.0,2350.9,0.82244]
[1725965386627,3.32265119,2351.0,2350.9,0.82244]
[1725965387122,2.89733119,2351.0,2350.9,0.82244]
[1725965387321,3.32265119,2351.0,2350.9,0.82244]
[1725965387526,3.32265119,2351.0,2350.9,0.42534]
[1725965387719,3.32265119,2351.0,2350.8,0.42535]
[1725965387919,0.3868,2350.9,2350.8,0.42535]
[1725965390220,2.3852,2350.9,2350.7,0.7545]
[1725965390527,0.42536,2350.8,2350.7,0.7545]
[1725965390718,4.47789119,2350.9,2350.7,1.84484325]
[1725965390919,4.47789119,2350.9,2350.7,1.17988]
[1725965391224,4.47789119,2350.9,2350.7,0.7545]
[1725965394020,0.42536,2350.8,2350.7,0.389]
[1725965394226,0.42536,2350.8,2350.7,0.66496587]
[1725965395327,2.64846826,2350.8,2350.7,0.66496587]
[1725965395822,2.22310826,2350.8,2350.7,0.66496587]
[1725965396124,2.77888533,2350.8,2350.7,0.66496587]
[1725965396324,3.20424533,2350.8,2350.7,0.66496587]
[1725965396623,2.77888533,2350.8,2350.7,0.66496587]
[1725965398221,2.77888533,2350.8,2350.7,2.15430792]
[1725965398522,2.77888533,2350.8,2350.7,1.72892792]
[1725965398726,2.77888533,2350.8,2350.7,0.66496587]
[1725965398929,2.77888533,2350.8,2350.7,1.72892627]
[1725965399326,2.77888533,2350.8,2350.7,2.15430627]
[1725965399831,2.77888533,2350.8,2350.6,1.54041049]
[1725965400023,2.22848653,2350.7,2350.6,1.54041049]
[1725965400226,2.22848653,2350.7,2350.6,3.26934469]
[1725965401324,2.22848653,2350.7,2350.6,1.54041049]
[1725965401527,2.22848653,2350.7,2350.6,3.26934487]
[1725965402123,2.22848653,2350.7,2350.6,11.09481189]
[1725965402332,1.67157832,2350.7,2350.6,11.30970602]
[1725965402736,1.67157832,2350.7,2350.6,12.98391033]
[1725965403325,1.67157832,2350.7,2350.6,11.92041033]
[1725965403536,1.67157832,2350.7,2350.6,12.98391033]
[1725965403724,1.67157832,2350.7,2350.6,11.30970602]
[1725965403923,1.67157832,2350.7,2350.6,12.98400417]
[1725965404132,1.67157832,2350.7,2350.6,11.30970602]
[1725965405334,1.67157832,2350.7,2350.6,7.18736702]
[1725965405527,1.67157832,2350.7,2350.6,9.18216759]
[1725965405831,1.67157832,2350.7,2350.6,10.69043745]
[1725965406832,2.96438653,2350.8,2350.7,0.42538]
[1725965407034,2.96438653,2350.8,2350.7,3.27050151]
[1725965407233,2.22848653,2350.8,2350.7,6.64930539]
[1725965407432,2.22848653,2350.8,2350.7,5.37610427]
[1725965407641,2.22848653,2350.8,2350.7,4.04620151]
[1725965408142,2.22848653,2350.8,2350.7,5.31942814]
[1725965408344,2.22848653,2350.8,2350.7,4.04620151]
[1725965408741,2.22848653,2350.8,2350.7,5.37609835]
[1725965408942,2.22848653,2350.8,2350.7,6.67494247]
[1725965409242,2.22848653,2350.8,2350.7,4.04620151]
[1725965409941,2.22848653,2350.9,2350.8,0.42536]
[1725965410137,2.22848653,2350.9,2350.8,3.27042037]
[1725965410449,2.22848653,2350.9,2350.8,3.64352037]
[1725965410639,2.22848653,2350.9,2350.8,4.94227043]
[1725965410937,2.22848653,2350.9,2350.8,3.64352037]
[1725965411131,2.22848653,2350.9,2350.8,4.94225939]
[1725965411331,2.22848653,2350.9,2350.8,4.94225849]
[1725965411936,2.22848653,2350.9,2350.8,5.155816]
[1725965412342,2.22848653,2351.0,2350.9,0.42534]
[1725965412554,2.77888533,2351.1,2351.0,0.42532]
[1725965412849,2.77888533,2351.1,2351.0,1.09025352]
[1725965415847,4.00888533,2351.1,2351.0,0.66493352]
[1725965416043,4.00888533,2351.1,2351.0,1.09025352]
[1725965416240,4.00888533,2351.1,2351.0,0.66493352]
[1725965416443,4.00888533,2351.1,2351.0,1.09025352]
[1725965416745,1.23,2351.1,2351.0,1.09025352]
[1725965417343,1.23,2351.1,2351.0,42.95405343]
[1725965417549,1.23,2351.1,2351.0,41.89025352]
[1725965417750,1.23,2351.1,2351.0,1.09025352]
[1725965417957,1.23,2351.1,2351.0,0.66493352]
[1725965418259,1.23,2351.1,2351.0,1.09025352]
[1725965418456,1.23,2351.1,2351.0,0.66488788]
[1725965418855,4.00888533,2351.1,2351.0,1.09020788]
[1725965419058,1.23,2351.1,2351.0,1.09020788]
[1725965420062,2.77888533,2351.2,2351.1,1.48858]
[1725965420259,1.67283078,2351.4,2351.2,1.06323]
[1725965420456,1.67283078,2351.5,2351.4,1.65525]
[1725965420654,1.67283078,2351.8,2351.7,0.4252]
[1725965420859,2.05183078,2351.9,2351.8,0.42518]
[1725965421063,2.05183078,2351.9,2351.8,1.09006788]
[1725965421449,0.379,2351.9,2351.8,1.09006788]
[1725965422255,0.379,2351.9,2351.8,0.42518]
[1725965423359,0.379,2351.9,2351.7,0.42519]
[1725965423554,0.379,2351.9,2351.5,1.9864]
[1725965423758,0.379,2351.9,2351.7,0.4252]
[1725965424665,0.379,2351.9,2351.8,0.42518]
[1725965428269,0.099,2352.4,2352.2,0.4251]
[1725965428466,1.67283078,2352.5,2351.8,11.482]
[1725965428467,2.3699,2352.5,2351.9,1.9926]
[1725965428665,2.3699,2352.5,2352.3,0.42509]
[1725965428965,2.3699,2352.5,2352.2,0.4251]
[1725965429468,2.3699,2352.5,2351.9,3.0555]
[1725965429469,2.3699,2352.5,2352.3,0.42509]
[1725965429670,2.3699,2352.5,2352.2,0.4251]
[1725965430071,2.3699,2352.5,2352.3,0.42508]
[1725965430570,2.3699,2352.5,2351.9,3.1545]
[1725965430766,2.3699,2352.5,2352.3,0.42509]
[1725965432268,2.3699,2352.5,2352.2,0.4251]
[1725965432464,2.3699,2352.5,2352.3,0.42509]
[1725965432876,2.3699,2352.5,2351.9,3.1545]
[1725965432877,1.1399,2352.5,2352.4,0.42507]
[1725965433065,1.67283078,2352.7,2352.6,0.42504]
[1725965433266,0.099,2353.0,2352.4,0.7559]
[1725965433267,4.04133078,2352.9,2352.4,0.7559]
[1725965433474,13.34923423,2352.9,2352.6,0.42502]
[1725965433681,2.3685,2352.9,2352.6,0.42502]
[1725965433979,2.79348,2352.9,2352.6,0.42502]
[1725965434867,1.1385,2352.9,2352.5,1.23]
[1725965435068,2.3685,2352.9,2352.8,0.425]
[1725965435266,2.3685,2352.9,2352.7,0.42501]
[1725965435879,2.3685,2352.9,2352.5,1.23]
[1725965435880,2.79349,2352.9,2352.5,1.23]
[1725965436071,2.79349,2352.9,2352.7,0.42501]
[1725965436270,2.79348,2352.9,2352.7,0.42501]
[1725965436583,2.3685,2352.9,2352.7,0.42501]
[1725965437573,2.79348,2352.9,2352.7,0.42501]
[1725965437979,1.1385,2352.9,2352.8,0.425]
[1725965438175,2.79349,2352.9,2352.7,0.42501]
[1725965439069,2.3685,2352.9,2352.7,0.42501]
[1725965439281,2.79348,2352.9,2352.7,0.425]
[1725965440282,2.3685,2352.9,2352.8,0.425]
[1725965440482,2.3685,2352.9,2352.7,0.42501]
[1725965440670,2.79349,2352.9,2352.7,0.42501]
[1725965440983,2.79349,2352.9,2352.7,0.42502]
[1725965440984,2.3685,2352.9,2352.7,0.42502]
[1725965441483,2.3685,2352.9,2352.8,0.425]
[1725965441986,2.3685,2352.9,2352.7,0.42501]
[1725965442180,2.3685,2352.9,2352.8,0.425]
[1725965442479,0.376,2352.9,2352.8,0.425]
[1725965447084,0.365,2353.0,2352.9,0.42498]
[1725965447287,0.7673,2353.2,2352.8,0.732]
[1725965447585,0.7673,2353.2,2353.0,0.42495]
[1725965448879,0.7673,2353.2,2353.1,0.42495]
[1725965449087,0.7673,2353.2,2353.0,0.42495]
[1725965449588,1.9973,2353.2,2353.0,0.42495]
[1725965450188,2.42223,2353.2,2352.9,0.81017]